{"text_format":"3","workbook":"xlsx","n_sheets":2,"sheets":["Liste für Lehrer"," Listendaten"],"not_rendered":{"defined_names":6},"read":"whole","date_system":"1900"}

{"sheet":"Liste für Lehrer","index":0,"n_rows":10,"n_cols":10,"rows_kept":10,"merged":[[0,1,0,2],[0,4,0,8],[2,9,6,9]]}
[null,"Liste für Lehrer",null,"Listendaten","Die Farblegende für den Status befindet sich in dieser Zelle: \"Nicht begonnen\" ist im Standardformat, \"In Bearbeitung\" ist R=91 G=133 B=49, \"Heute fällig\" ist R=118 G=88 B=0, \"Angehalten\" ist R=109 G=66 B=111, \"Abgeschlossen\"ist durchgestrichen, \"Abgebrochen\" ist R=191 G=191 B=191 und \"Überfällig\" ist R=191 G=33 B=28."]
[null,"AUFGABE","KATEGORIE","ANFANGSDATUM","FÄLLIGKEITSDATUM","VERBLEIBENDE TAGE","STATUS","ANMERKUNGEN"]
[null,"Schubfächer säubern","Büro",{"$f":"DATE(YEAR(TODAY()),MONTH(TODAY())-1,6)","v":"2018-04-06"},{"$f":"DATE(YEAR(TODAY()),MONTH(TODAY())-1,16)","v":"2018-04-16"},{"$f":"IFERROR(IF(COUNT(Liste[[#This Row],[ANFANGSDATUM]]:Liste[[#This Row],[FÄLLIGKEITSDATUM]])<>2,\"\",IF(OR(Liste[[#This Row],[STATUS]]=\"Abgeschlossen\",Liste[[#This Row],[STATUS]]=\"Abgebrochen\",Liste[[#This Row],[STATUS]]=\"Angehalten\"),\"\",Liste[[#This Row],[FÄLLIGKEITSDATUM]]-TODAY())),\"\")","v":""},"Abgeschlossen",null,null,"Der Datenschnitt \"Status\" befindet sich in dieser Zelle. Um die Liste nach Status zu filtern, wählen Sie einen Status aus dem Datenschnitt aus. Halten Sie die STRG-TASTE gedrückt, um mehrere Optionen auszuwählen."]
[null,"Aufkleber bestellen","Schulmaterialien",{"$f":"DATE(YEAR(TODAY()),MONTH(TODAY())-1,11)","v":"2018-04-11"},{"$f":"DATE(YEAR(TODAY()),MONTH(TODAY())-1,21)","v":"2018-04-21"},{"$f":"IFERROR(IF(COUNT(Liste[[#This Row],[ANFANGSDATUM]]:Liste[[#This Row],[FÄLLIGKEITSDATUM]])<>2,\"\",IF(OR(Liste[[#This Row],[STATUS]]=\"Abgeschlossen\",Liste[[#This Row],[STATUS]]=\"Abgebrochen\",Liste[[#This Row],[STATUS]]=\"Angehalten\"),\"\",Liste[[#This Row],[FÄLLIGKEITSDATUM]]-TODAY())),\"\")","v":""},"Abgeschlossen"]
[null,"Böden gewischt und gewachst","Sonstiges",{"$f":"DATE(YEAR(TODAY()),MONTH(TODAY()-1),DAY(TODAY())-25)","v":"2018-04-13"},{"$f":"DATE(YEAR(TODAY()),MONTH(TODAY())-1,26)","v":"2018-04-26"},{"$f":"IFERROR(IF(COUNT(Liste[[#This Row],[ANFANGSDATUM]]:Liste[[#This Row],[FÄLLIGKEITSDATUM]])<>2,\"\",IF(OR(Liste[[#This Row],[STATUS]]=\"Abgeschlossen\",Liste[[#This Row],[STATUS]]=\"Abgebrochen\",Liste[[#This Row],[STATUS]]=\"Angehalten\"),\"\",Liste[[#This Row],[FÄLLIGKEITSDATUM]]-TODAY())),\"\")","v":""},"Abgeschlossen"]
[null,"Namensschilder erstellt","Schulmaterialien",{"$f":"DATE(YEAR(TODAY()),MONTH(TODAY())-1,21)","v":"2018-04-21"},{"$f":"DATE(YEAR(TODAY()),MONTH(TODAY())-1,1)","v":"2018-04-01"},{"$f":"IFERROR(IF(COUNT(Liste[[#This Row],[ANFANGSDATUM]]:Liste[[#This Row],[FÄLLIGKEITSDATUM]])<>2,\"\",IF(OR(Liste[[#This Row],[STATUS]]=\"Abgeschlossen\",Liste[[#This Row],[STATUS]]=\"Abgebrochen\",Liste[[#This Row],[STATUS]]=\"Angehalten\"),\"\",Liste[[#This Row],[FÄLLIGKEITSDATUM]]-TODAY())),\"\")","v":""},"Angehalten"]
[null,"Note - schriftliche Berichte/Quartal","Bewertungen",{"$f":"DATE(YEAR(TODAY()),MONTH(TODAY())-1,26)","v":"2018-04-26"},{"$f":"TODAY()-5","v":"2018-05-03"},{"$f":"IFERROR(IF(COUNT(Liste[[#This Row],[ANFANGSDATUM]]:Liste[[#This Row],[FÄLLIGKEITSDATUM]])<>2,\"\",IF(OR(Liste[[#This Row],[STATUS]]=\"Abgeschlossen\",Liste[[#This Row],[STATUS]]=\"Abgebrochen\",Liste[[#This Row],[STATUS]]=\"Angehalten\"),\"\",Liste[[#This Row],[FÄLLIGKEITSDATUM]]-TODAY())),\"\")","v":-5},"Überfällig"]
[null,"E-Mail-Erinnerung für Erlaubnisscheine","Telefonanrufe",{"$f":"DATE(YEAR(TODAY()),MONTH(TODAY()),1)","v":"2018-05-01"},{"$f":"TODAY()","v":"2018-05-08"},{"$f":"IFERROR(IF(COUNT(Liste[[#This Row],[ANFANGSDATUM]]:Liste[[#This Row],[FÄLLIGKEITSDATUM]])<>2,\"\",IF(OR(Liste[[#This Row],[STATUS]]=\"Abgeschlossen\",Liste[[#This Row],[STATUS]]=\"Abgebrochen\",Liste[[#This Row],[STATUS]]=\"Angehalten\"),\"\",Liste[[#This Row],[FÄLLIGKEITSDATUM]]-TODAY())),\"\")","v":""},"Abgebrochen"]
[null,"Note - mündliche Berichte","Büro",{"$f":"DATE(YEAR(TODAY()),MONTH(TODAY()),7)","v":"2018-05-07"},{"$f":"DATE(YEAR(TODAY()),MONTH(TODAY()),17)","v":"2018-05-17"},{"$f":"IFERROR(IF(COUNT(Liste[[#This Row],[ANFANGSDATUM]]:Liste[[#This Row],[FÄLLIGKEITSDATUM]])<>2,\"\",IF(OR(Liste[[#This Row],[STATUS]]=\"Abgeschlossen\",Liste[[#This Row],[STATUS]]=\"Abgebrochen\",Liste[[#This Row],[STATUS]]=\"Angehalten\"),\"\",Liste[[#This Row],[FÄLLIGKEITSDATUM]]-TODAY())),\"\")","v":9},"In Bearbeitung"]
[null,"Bleistifte anspitzen","Schulmaterialien",{"$f":"DATE(YEAR(TODAY()),MONTH(TODAY()),11)","v":"2018-05-11"},{"$f":"DATE(YEAR(TODAY()),MONTH(TODAY()),10)","v":"2018-05-10"},{"$f":"IFERROR(IF(COUNT(Liste[[#This Row],[ANFANGSDATUM]]:Liste[[#This Row],[FÄLLIGKEITSDATUM]])<>2,\"\",IF(OR(Liste[[#This Row],[STATUS]]=\"Abgeschlossen\",Liste[[#This Row],[STATUS]]=\"Abgebrochen\",Liste[[#This Row],[STATUS]]=\"Angehalten\"),\"\",Liste[[#This Row],[FÄLLIGKEITSDATUM]]-TODAY())),\"\")","v":2},"In Bearbeitung"]

{"sheet":" Listendaten","index":1,"n_rows":13,"n_cols":3,"rows_kept":13}
[null,"Listendaten","Liste für Lehrer"]
[null,"Kategorie"]
[null,"Büro"]
[null,"Schulmaterialien"]
[null,"Einkäufe"]
[null,"Telefonanrufe"]
[null,"Neue Ideen"]
[null,"Bewertungen"]
[null,"Team"]
[null,"Maßnahmen"]
[null,"Computer"]
[null,"Persönliches"]
[null,"Sonstiges"]